[Event "2nd Namma Bengaluru Open-B 2025"]
[Site "Bengaluru"]
[Date "2025.04.12"]
[Round "7.1"]
[White "Aditya Dileepraj"]
[Black "Nayak, Biswajit"]
[Result "1-0"]
[Annotator "NA"]
[ECO "E12"]
[WhiteElo "1746"]
[BlackElo "1979"]
[PlyCount "101"]
[EventDate "2025.04.10"]
[EventType "swiss"]
[EventCountry "IND"]
[SourceTitle "playchess.com"]
[Source "ChessBase"]
[SourceQuality "1"]
[TimeControl "3600+30"]

1. d4 {[%emt 0:00:04]} Nf6 {[%emt 0:04:03]} 2. c4 {[%emt 0:00:18]} e6 {[%emt 0:00:59]} 3. Nf3 {[%emt 0:00:06]} b6 {[%emt 0:00:33]} 4. Nc3 {[%emt 0:00:56]} Bb7 {[%emt 0:00:44]} 5. Bg5 {[%emt 0:01:05]} Bb4 {[%emt 0:00:15]} 6. Rc1 {[%emt 0:02:29]} h6 {[%emt 0:00:36]} 7. Bxf6 {[%emt 0:02:37]} Qxf6 {[%emt 0:00:50]} 8. a3 {[%emt 0:00:16] E12: Queen's Indian: Unusual White 4th moves, 4 a3, 4 Nc3 Bb7 5 a3 and 4 Nc3 Bb7 .} Bxc3+ {[%emt 0:00:39]} 9. Rxc3 {[%emt 0:00:12]} O-O {[%emt 0:01:34]} 10. g3 {[%emt 0:00:25]} Be4 {[%emt 0:04:07]} 11. Bg2 {[%emt 0:00:54]} Nc6 {[%emt 0:00:44]} 12. e3 {[%emt 0:01:35]} e5 {[%emt 0:01:42]} 13. d5 {[%emt 0:00:53]} Ne7 {[%emt 0:00:37]} 14. O-O {[%emt 0:01:08]} d6 {[%emt 0:00:58]} 15. Nh4 {[%emt 0:02:32]} Bxg2 {[%emt 0:01:45]} 16. Kxg2 {[%emt 0:00:27]} g5 {[%emt 0:01:48]} 17. Qf3 {[%emt 0:00:10]} Qxf3+ {[%emt 0:00:56]} 18. Nxf3 {[%emt 0:00:06]} f5 {[%emt 0:01:15]} 19. b4 {[%emt 0:01:16]} a5 {[%emt 0:00:15]} 20. Rd1 {[%emt 0:01:22]} axb4 {[%emt 0:00:49]} 21. axb4 {[%emt 0:00:06]} Ra4 {[%emt 0:00:39]} (21... Kf7 $17 22. c5 bxc5 23. bxc5 Rfc8) 22. c5 $15 {[%emt 0:02:32]} Rfa8 {[%emt 0:21:55]} 23. cxd6 {[%emt 0:00:44]} cxd6 {[%emt 0:00:02]} 24. Nxe5 {[%emt 0:01:20]} dxe5 {[%emt 0:12:37]} 25. d6 {[%emt 0:00:05]} Rxb4 {[%emt 0:04:01]} 26. dxe7 {[%emt 0:00:10]} Re8 {[%emt 0:00:05]} 27. Rc6 {[%emt 0:02:41]} Rxe7 {[%emt 0:01:56]} 28. Rxh6 {[%emt 0:00:27]} f4 {[%emt 0:02:42]} 29. Rh5 {[%emt 0:03:03]} g4 {[%emt 0:02:04]} 30. Rd8+ {[%emt 0:02:03]} Kf7 {[%emt 0:00:23]} 31. gxf4 {[%emt 0:00:55]} exf4 {[%emt 0:00:33]} 32. Rf5+ {[%emt 0:00:08]} Ke6 {[%emt 0:01:23]} 33. Rxf4 {[%emt 0:00:25]} Rxf4 {[%emt 0:00:23]} 34. exf4 {[%emt 0:00:05]} b5 {[%emt 0:01:23]} 35. Rb8 {[%emt 0:00:28]} Rf7 {[%emt 0:00:07]} 36. Kg3 {[%emt 0:00:14]} Rf5 {[%emt 0:00:32]} 37. Kxg4 {[%emt 0:00:16]} Rc5 {[%emt 0:00:10]} 38. f5+ {[%emt 0:00:28]} Kf7 {[%emt 0:01:26]} 39. h4 {[%emt 0:00:35]} Rc2 {[%emt 0:01:07]} 40. Kg5 {[%emt 0:00:26]} Rxf2 {[%emt 0:00:38]} 41. Rb7+ {[%emt 0:00:04]} Kg8 {[%emt 0:00:30]} 42. Rxb5 {[%emt 0:00:37]} Rg2+ {[%emt 0:00:11]} 43. Kf6 {[%emt 0:00:43]} Rh2 {[%emt 0:00:32]} 44. Rb4 {[%emt 0:02:18]} Rh1 {[%emt 0:00:15]} 45. h5 {[%emt 0:00:50]} Rh2 {[%emt 0:00:52]} 46. Kg5 {[%emt 0:00:28]} Kh7 {[%emt 0:00:58]} 47. f6 {[%emt 0:00:44]} Rg2+ {[%emt 0:00:22]} 48. Rg4 {[%emt 0:00:10]} Ra2 {[%emt 0:00:25]} 49. Rf4 {[%emt 0:00:58]} Rg2+ {[%emt 0:00:31]} 50. Kh4 {[%emt 0:00:10]} Kg8 {[%emt 0:00:59]} 51. Rg4+ {[%emt 0:00:05]} 1-0

[Event "2nd Namma Bengaluru Open-B 2025"]
[Site "Bengaluru"]
[Date "2025.04.12"]
[Round "7.2"]
[White "Gokul G"]
[Black "Nijesh R"]
[Result "1/2-1/2"]
[Annotator "NA"]
[ECO "B90"]
[WhiteElo "1858"]
[BlackElo "1813"]
[PlyCount "72"]
[EventDate "2025.04.10"]
[EventType "swiss"]
[EventCountry "IND"]
[SourceTitle "playchess.com"]
[Source "ChessBase"]
[SourceQuality "1"]
[TimeControl "3600+30"]

1. e4 {[%emt 0:00:07]} c5 {[%emt 0:01:20]} 2. Nf3 {[%emt 0:00:03]} d6 {[%emt 0:00:47]} 3. d4 {[%emt 0:00:03]} cxd4 {[%emt 0:00:20]} 4. Nxd4 {[%emt 0:00:06]} Nf6 {[%emt 0:00:08]} 5. Nc3 {[%emt 0:00:02]} a6 {[%emt 0:00:08]} 6. h3 {[%emt 0:00:08]} e5 {[%emt 0:00:18]} 7. Nde2 {[%emt 0:00:03]} h5 {[%emt 0:00:12]} 8. g3 {[%emt 0:00:02]} Be6 {[%emt 0:00:31]} 9. Bg2 {[%emt 0:00:02]} Be7 {[%emt 0:00:35]} 10. O-O {[%emt 0:00:21]} Nbd7 {[%emt 0:00:20]} 11. a4 {[%emt 0:00:46]} Rc8 {[%emt 0:00:45]} 12. Be3 {[%emt 0:00:52]} Qc7 {[%emt 0:01:30]} 13. Rc1 {[%emt 0:10:09]} O-O {[%emt 0:07:32]} 14. b3 {[%emt 0:04:13]} Rfd8 {[%emt 0:09:02]} 15. Qd2 {[%emt 0:09:41]} Nf8 {[%emt 0:06:56]} 16. Rfd1 {[%emt 0:01:38]} Qd7 $14 {[%emt 0:05:53]} 17. Kh2 {[%emt 0:10:43]} h4 {[%emt 0:03:13]} 18. g4 {[%emt 0:05:39]} Ng6 {[%emt 0:03:39]} 19. Bb6 {[%emt 0:02:42]} Re8 {[%emt 0:03:49]} 20. Nd5 {[%emt 0:00:06]} Bxd5 {[%emt 0:02:20]} 21. exd5 {[%emt 0:00:53]} Bd8 {[%emt 0:01:38]} 22. Be3 {[%emt 0:01:46]} b5 {[%emt 0:01:27]} 23. axb5 {[%emt 0:00:08]} axb5 {[%emt 0:01:28]} 24. c4 {[%emt 0:00:05]} bxc4 {[%emt 0:00:12]} 25. bxc4 {[%emt 0:00:14]} e4 {[%emt 0:02:26]} 26. Qd4 {[%emt 0:05:34]} Ne5 {[%emt 0:05:39]} 27. Rg1 {[%emt 0:06:48]} Rb8 {[%emt 0:04:59]} 28. g5 {[%emt 0:02:53]} Bb6 {[%emt 0:01:18]} 29. Qd2 {[%emt 0:00:31]} Bxe3 {[%emt 0:00:08]} 30. fxe3 {[%emt 0:00:06]} Nfg4+ {[%emt 0:01:15]} 31. hxg4 {[%emt 0:00:10]} Nxg4+ {[%emt 0:00:01]} 32. Kh1 {[%emt 0:00:01]} Nf2+ {[%emt 0:00:10]} 33. Kh2 {[%emt 0:00:01]} Ng4+ {[%emt 0:00:02]} 34. Kh1 {[%emt 0:00:01]} Nf2+ {[%emt 0:00:14]} 35. Kh2 {[%emt 0:00:02]} Ng4+ {[%emt 0:00:09]} 36. Kh1 {[%emt 0:00:06]} Nf2+ {[%emt 0:08:06]} 1/2-1/2

[Event "2nd Namma Bengaluru Open-B 2025"]
[Site "Bengaluru"]
[Date "2025.04.12"]
[Round "7.3"]
[White "Gaigore Sanskar"]
[Black "Afreed T Khan"]
[Result "1/2-1/2"]
[Annotator "NA"]
[ECO "A05"]
[WhiteElo "1752"]
[BlackElo "1921"]
[PlyCount "67"]
[EventDate "2025.04.10"]
[EventType "swiss"]
[EventCountry "IND"]
[SourceTitle "playchess.com"]
[Source "ChessBase"]
[SourceQuality "1"]
[TimeControl "3600+30"]

1. Nf3 {[%emt 0:01:25]} Nf6 {[%emt 0:00:54]} 2. g3 {[%emt 0:01:52]} g6 {[%emt 0:00:09]} 3. b4 {[%emt 0:00:18]} Bg7 {[%emt 0:00:29]} 4. Bb2 {[%emt 0:00:05]} O-O {[%emt 0:00:22]} 5. Bg2 {[%emt 0:00:05]} d6 {[%emt 0:00:04]} 6. O-O {[%emt 0:00:11]} c6 {[%emt 0:00:04]} 7. c4 {[%emt 0:00:29] A05: Réti Opening: 1 Nf3 Nf6.} a5 {[%emt 0:00:44]} 8. b5 {[%emt 0:01:03]} a4 {[%emt 0:01:07]} 9. Na3 {[%emt 0:00:48]} cxb5 {[%emt 0:04:14]} 10. cxb5 {[%emt 0:01:00]} Nbd7 {[%emt 0:00:12]} 11. d4 {[%emt 0:01:31]} Nb6 {[%emt 0:00:23]} 12. Nd2 {[%emt 0:03:07]} d5 {[%emt 0:05:02]} 13. e4 {[%emt 0:04:12]} dxe4 {[%emt 0:07:07]} 14. Nxe4 {[%emt 0:01:18]} Nxe4 {[%emt 0:00:10]} 15. Bxe4 {[%emt 0:00:06]} Rb8 {[%emt 0:00:11]} 16. Bc2 {[%emt 0:13:08]} Qd5 {[%emt 0:01:53]} 17. Re1 {[%emt 0:01:47]} Be6 {[%emt 0:00:59]} 18. Be4 {[%emt 0:02:08]} Qd6 {[%emt 0:00:24]} 19. Nc2 {[%emt 0:00:47]} Bd5 {[%emt 0:05:09]} 20. Ba3 {[%emt 0:01:34]} Qd7 $15 {[%emt 0:40:53]} 21. Bc5 {[%emt 0:12:52]} Bxe4 {[%emt 0:00:00]} 22. Rxe4 {[%emt 0:00:16]} Nd5 {[%emt 0:00:00]} 23. Qd3 {[%emt 0:04:29]} b6 {[%emt 0:00:00]} 24. Bb4 {[%emt 0:00:42]} Rfc8 {[%emt 0:00:00]} 25. a3 {[%emt 0:00:59]} Qc7 {[%emt 0:00:00]} 26. Re2 {[%emt 0:02:45]} e6 {[%emt 0:00:00]} 27. Ne3 {[%emt 0:03:59]} Nxe3 {[%emt 0:00:00]} 28. fxe3 {[%emt 0:00:58]} Qc4 {[%emt 0:00:00]} 29. Rd1 {[%emt 0:00:30]} Bf8 {[%emt 0:00:00]} 30. Rb2 {[%emt 0:00:55]} Bxb4 {[%emt 0:00:00]} 31. Rxb4 {[%emt 0:00:13]} Qxd3 {[%emt 0:00:00]} 32. Rxd3 {[%emt 0:00:06]} Rc2 {[%emt 0:00:00]} 33. e4 {[%emt 0:03:23]} Rbc8 {[%emt 0:00:00]} 34. Rf3 {[%emt 0:08:29]} 1/2-1/2

[Event "2nd Namma Bengaluru Open-B 2025"]
[Site "Bengaluru"]
[Date "2025.04.12"]
[Round "7.4"]
[White "Elesh Tripathi"]
[Black "Narahari Geethika Hasini"]
[Result "1-0"]
[Annotator "NA"]
[ECO "D30"]
[WhiteElo "1758"]
[BlackElo "1856"]
[PlyCount "119"]
[EventDate "2025.04.10"]
[EventType "swiss"]
[EventCountry "IND"]
[SourceTitle "playchess.com"]
[Source "ChessBase"]
[SourceQuality "1"]
[TimeControl "3600+30"]

1. d4 {[%emt 0:00:02]} d5 {[%emt 0:04:32]} 2. g3 {[%emt 0:00:06]} Nf6 {[%emt 0:01:17]} 3. Bg2 {[%emt 0:00:08]} e6 {[%emt 0:01:22]} 4. Nf3 {[%emt 0:00:07]} c5 {[%emt 0:00:26]} 5. O-O {[%emt 0:00:20]} h6 {[%emt 0:00:22]} 6. c4 {[%emt 0:00:10]} Nc6 {[%emt 0:00:27]} 7. Nc3 {[%emt 0:00:45]} Be7 {[%emt 0:01:20]} 8. cxd5 {[%emt 0:03:00]} exd5 {[%emt 0:00:10]} 9. dxc5 {[%emt 0:00:29]} Bxc5 {[%emt 0:00:11]} 10. Bf4 {[%emt 0:00:08]} O-O {[%emt 0:00:51]} 11. Rc1 {[%emt 0:00:39]} Bb6 {[%emt 0:02:30]} 12. Ne5 {[%emt 0:01:20]} Be6 {[%emt 0:00:46]} 13. Na4 {[%emt 0:01:11]} Rc8 {[%emt 0:01:28]} 14. Nd3 {[%emt 0:03:45]} Re8 {[%emt 0:02:46]} 15. Ndc5 {[%emt 0:01:06]} Bxc5 {[%emt 0:01:15]} 16. Nxc5 {[%emt 0:03:14]} Qe7 {[%emt 0:01:06]} 17. Re1 {[%emt 0:08:10]} b6 {[%emt 0:07:36]} 18. Nxe6 {[%emt 0:00:56]} Qxe6 {[%emt 0:03:25]} 19. Bf3 $11 {[%emt 0:07:33]} g5 {[%emt 0:04:27]} 20. Be3 {[%emt 0:02:21]} Ne5 {[%emt 0:05:17]} 21. Rxc8 {[%emt 0:01:14]} Rxc8 {[%emt 0:00:15]} 22. Bd4 {[%emt 0:00:11]} Rc4 {[%emt 0:01:14]} 23. Bg2 {[%emt 0:03:09]} g4 {[%emt 0:05:30]} 24. b3 {[%emt 0:01:00]} Rc8 {[%emt 0:00:38]} 25. Qd2 {[%emt 0:01:42]} Kh7 {[%emt 0:01:05]} 26. Rd1 {[%emt 0:03:00]} Rd8 {[%emt 0:01:36]} 27. Qf4 {[%emt 0:03:15]} Ned7 {[%emt 0:01:37]} 28. Be3 {[%emt 0:01:20]} Nh5 {[%emt 0:08:58]} 29. Qc7 {[%emt 0:00:27]} Qe8 {[%emt 0:00:31]} 30. Rxd5 {[%emt 0:01:50]} Nhf6 {[%emt 0:00:22]} 31. Rd1 {[%emt 0:00:25]} Rc8 {[%emt 0:01:06]} 32. Qf4 {[%emt 0:00:11]} Qf8 {[%emt 0:01:17]} 33. Qf5+ {[%emt 0:00:18]} Kg7 {[%emt 0:00:25]} 34. Rxd7 {[%emt 0:00:10]} Nxd7 {[%emt 0:00:28]} 35. Qxg4+ {[%emt 0:00:27]} Kh8 {[%emt 0:00:19]} 36. Qxd7 {[%emt 0:00:24]} Rd8 {[%emt 0:00:20]} 37. Qh3 {[%emt 0:03:08]} Rd1+ {[%emt 0:00:41]} 38. Bf1 {[%emt 0:01:06]} Kh7 {[%emt 0:00:19]} 39. Qf5+ {[%emt 0:00:07]} Kh8 {[%emt 0:00:06]} 40. Qc2 {[%emt 0:02:00]} Qd6 {[%emt 0:01:11]} 41. f3 {[%emt 0:03:13]} h5 {[%emt 0:01:58]} 42. Kf2 {[%emt 0:00:40]} Qd7 {[%emt 0:03:39]} 43. Bh3 {[%emt 0:02:02]} Qxh3 {[%emt 0:01:18]} 44. Qxd1 {[%emt 0:00:08]} Qxh2+ {[%emt 0:00:07]} 45. Kf1 {[%emt 0:00:12]} Qh3+ {[%emt 0:00:27]} 46. Ke1 {[%emt 0:00:27]} Qxg3+ {[%emt 0:00:07]} 47. Bf2 {[%emt 0:00:04]} Qc7 {[%emt 0:00:28]} 48. Qd2 {[%emt 0:00:47]} Kh7 {[%emt 0:00:38]} 49. Qg5 {[%emt 0:01:44]} f6 {[%emt 0:01:48]} 50. Qxh5+ {[%emt 0:00:16]} Kg7 {[%emt 0:00:02]} 51. Qg4+ {[%emt 0:00:07]} Kf8 {[%emt 0:00:18]} 52. Bd4 {[%emt 0:00:55]} Kf7 {[%emt 0:00:29]} 53. Qh5+ {[%emt 0:00:06]} Ke6 {[%emt 0:00:20]} 54. Qe8+ {[%emt 0:00:13]} Kd6 {[%emt 0:00:31]} 55. Bxf6 {[%emt 0:00:15]} Qc1+ {[%emt 0:00:41]} 56. Kf2 {[%emt 0:00:06]} Qh6 {[%emt 0:00:32]} 57. Qe7+ {[%emt 0:00:34]} Kc6 {[%emt 0:00:09]} 58. Qe6+ {[%emt 0:00:06]} Kb7 {[%emt 0:00:06]} 59. Qd7+ {[%emt 0:00:07]} Ka6 {[%emt 0:00:08]} 60. Qc8+ {[%emt 0:00:04]} 1-0

[Event "2nd Namma Bengaluru Open-B 2025"]
[Site "Bengaluru"]
[Date "2025.04.12"]
[Round "7.5"]
[White "Anushka Gupta"]
[Black "Swapnil Priyadarshi"]
[Result "0-1"]
[Annotator "NA"]
[ECO "B20"]
[WhiteElo "1739"]
[BlackElo "1814"]
[PlyCount "92"]
[EventDate "2025.04.10"]
[EventType "swiss"]
[EventCountry "IND"]
[SourceTitle "playchess.com"]
[Source "ChessBase"]
[SourceQuality "1"]
[TimeControl "3600+30"]

1. e4 {[%emt 0:00:03]} c5 {[%emt 0:03:53]} 2. Ne2 {[%emt 0:00:31]} d6 {[%emt 0:00:05]} 3. g3 {[%emt 0:00:06]} d5 {[%emt 0:58:02]} 4. Bg2 {[%emt 0:00:15]} d4 {[%emt 0:00:00]} 5. d3 {[%emt 0:01:41]} e5 {[%emt 0:00:00]} 6. f4 {[%emt 0:02:00]} Nc6 {[%emt 0:00:00]} 7. O-O {[%emt 0:00:29]} Nf6 {[%emt 0:00:00]} 8. Nd2 {[%emt 0:01:36]} Be7 {[%emt 0:00:00]} 9. Nc4 {[%emt 0:01:23]} b5 {[%emt 0:00:00]} 10. Nxe5 {[%emt 0:07:38]} Nxe5 {[%emt 0:00:00]} 11. fxe5 {[%emt 0:00:01]} Ng4 {[%emt 0:00:00]} 12. Nf4 {[%emt 0:06:16]} Nxe5 {[%emt 0:00:00]} 13. Nd5 {[%emt 0:05:20]} Bd6 {[%emt 0:00:00]} 14. Bf4 {[%emt 0:02:38]} O-O {[%emt 0:00:00]} 15. c3 {[%emt 0:03:05]} Bg4 {[%emt 0:00:00]} 16. Qd2 {[%emt 0:00:38]} Be6 {[%emt 0:00:00]} 17. cxd4 $11 {[%emt 0:01:55]} cxd4 {[%emt 0:00:00]} 18. Rac1 {[%emt 0:03:09]} f6 {[%emt 0:00:00]} 19. h3 {[%emt 0:02:36]} Qd7 {[%emt 0:00:00]} 20. Kh2 {[%emt 0:00:57]} g5 {[%emt 0:00:00]} 21. Bxe5 {[%emt 0:01:06]} Bxe5 {[%emt 0:00:00]} 22. Nxf6+ {[%emt 0:01:53]} Bxf6 {[%emt 0:00:00]} 23. e5 {[%emt 0:02:42]} Be7 {[%emt 0:00:00]} 24. Bc6 {[%emt 0:07:00]} Qd8 {[%emt 0:00:00]} 25. Rxf8+ {[%emt 0:00:26]} Qxf8 {[%emt 0:00:00]} 26. Bxa8 {[%emt 0:00:06]} Qxa8 {[%emt 0:00:00]} 27. Qg2 {[%emt 0:02:51]} Qxg2+ {[%emt 0:00:00]} 28. Kxg2 {[%emt 0:00:02]} Bf5 {[%emt 0:00:00]} 29. Kf3 {[%emt 0:03:10]} Kf7 {[%emt 0:00:33]} 30. g4 {[%emt 0:02:50]} Bxd3 {[%emt 0:01:44]} 31. Rd1 {[%emt 0:00:02]} Bc4 {[%emt 0:00:14]} 32. Rxd4 {[%emt 0:01:50]} Ke6 {[%emt 0:03:28]} 33. Ke4 {[%emt 0:02:07]} Bxa2 {[%emt 0:00:25]} 34. Rd2 {[%emt 0:01:16]} Bb3 {[%emt 0:02:01]} 35. Kd4 {[%emt 0:01:02]} a5 {[%emt 0:00:26]} 36. Rd3 {[%emt 0:00:25]} Bc4 {[%emt 0:00:38]} 37. Rf3 {[%emt 0:00:51]} a4 {[%emt 0:00:16]} 38. Rf5 {[%emt 0:01:14]} Bd5 {[%emt 0:01:32]} 39. h4 {[%emt 0:01:04]} b4 {[%emt 0:00:25]} 40. hxg5 {[%emt 0:00:53]} a3 {[%emt 0:00:46]} 41. bxa3 {[%emt 0:00:24]} bxa3 {[%emt 0:00:37]} 42. Rf1 {[%emt 0:02:19]} Bxg5 {[%emt 0:02:10]} 43. Rb1 {[%emt 0:00:20]} Bd8 {[%emt 0:00:08]} 44. Kc5 {[%emt 0:02:27]} a2 {[%emt 0:00:41]} 45. Rd1 {[%emt 0:00:03]} Bc7 {[%emt 0:01:25]} 46. g5 {[%emt 0:00:51]} Bxe5 {[%emt 0:00:15]} 0-1

[Event "2nd Namma Bengaluru Open-B 2025"]
[Site "Bengaluru"]
[Date "2025.04.12"]
[Round "7.6"]
[White "Karyasheel P"]
[Black "Aryan Behera"]
[Result "1/2-1/2"]
[Annotator "NA"]
[ECO "B11"]
[WhiteElo "1808"]
[BlackElo "1732"]
[PlyCount "53"]
[EventDate "2025.04.10"]
[EventType "swiss"]
[EventCountry "IND"]
[SourceTitle "playchess.com"]
[Source "ChessBase"]
[SourceQuality "1"]
[TimeControl "3600+30"]

1. e4 {[%emt 0:00:37]} c6 {[%emt 0:00:06]} 2. Nc3 {[%emt 0:00:21]} d5 {[%emt 0:00:06]} 3. Nf3 {[%emt 0:00:04]} Bg4 {[%emt 0:00:04]} 4. h3 {[%emt 0:00:10]} Bxf3 {[%emt 0:00:06]} 5. Qxf3 {[%emt 0:00:04]} e6 {[%emt 0:00:06]} 6. g3 {[%emt 0:01:45]} Nf6 {[%emt 0:00:56]} 7. Bg2 {[%emt 0:05:27]} dxe4 {[%emt 0:00:07]} 8. Nxe4 {[%emt 0:00:13]} Nxe4 {[%emt 0:00:06]} 9. Qxe4 {[%emt 0:00:11]} Qd5 {[%emt 0:00:03]} 10. Qxd5 {[%emt 0:05:38]} exd5 {[%emt 0:00:09]} 11. b3 {[%emt 0:01:27]} f5 {[%emt 0:06:51]} 12. Bb2 {[%emt 0:04:07]} Kf7 {[%emt 0:00:01]} 13. g4 {[%emt 0:02:10]} fxg4 {[%emt 0:03:39]} 14. hxg4 {[%emt 0:00:09]} Be7 {[%emt 0:00:05]} 15. Rh3 {[%emt 0:01:58]} Bf6 {[%emt 0:01:36]} 16. Rf3 {[%emt 0:06:53]} Re8+ {[%emt 0:00:11]} 17. Kf1 {[%emt 0:00:52]} Kg6 {[%emt 0:00:42]} 18. Bxf6 {[%emt 0:00:49]} gxf6 {[%emt 0:00:01]} 19. Rh3 {[%emt 0:02:13]} Na6 {[%emt 0:02:56]} 20. a3 {[%emt 0:03:31]} Nc5 {[%emt 0:01:01]} 21. f4 {[%emt 0:02:10]} Kg7 {[%emt 0:01:40]} 22. Kf2 {[%emt 0:01:35]} Ne6 $14 {[%emt 0:50:58]} 23. Rah1 {[%emt 0:04:28]} Rh8 {[%emt 0:00:00]} 24. Re3 {[%emt 0:05:18]} Rae8 {[%emt 0:00:00]} 25. Rhe1 {[%emt 0:00:58]} Kf7 {[%emt 0:00:00]} 26. Kg3 {[%emt 0:02:06]} Nd4 {[%emt 0:00:00]} 27. c4 {[%emt 0:18:46]} 1/2-1/2

[Event "2nd Namma Bengaluru Open-B 2025"]
[Site "Bengaluru"]
[Date "2025.04.12"]
[Round "7.7"]
[White "Hrishikesh Ganapathy Subramani"]
[Black "Prashanth J Naik"]
[Result "1-0"]
[Annotator "NA"]
[ECO "A23"]
[WhiteElo "1792"]
[BlackElo "1979"]
[PlyCount "57"]
[EventDate "2025.04.10"]
[EventType "swiss"]
[EventCountry "IND"]
[SourceTitle "playchess.com"]
[Source "ChessBase"]
[SourceQuality "1"]
[TimeControl "3600+30"]

1. c4 {[%emt 0:02:21]} e5 {[%emt 0:00:15]} 2. Nc3 {[%emt 0:00:02]} Nf6 {[%emt 0:00:12]} 3. g3 {[%emt 0:00:04]} c6 {[%emt 0:00:19]} 4. d4 {[%emt 0:01:56]} exd4 {[%emt 0:02:27]} 5. Qxd4 {[%emt 0:00:12]} Na6 {[%emt 0:00:04]} 6. a3 {[%emt 0:05:44]} Bc5 {[%emt 0:01:08]} 7. Qd2 {[%emt 0:01:58]} O-O {[%emt 0:05:18]} 8. Bg2 {[%emt 0:00:23] [#]} d5 {[%emt 0:05:02]} 9. cxd5 {[%emt 0:12:24]} cxd5 {[%emt 0:06:11]} 10. e3 {[%emt 0:07:00]} (10. b4 $5) 10... d4 {[%emt 0:11:20]} 11. exd4 {[%emt 0:00:31]} Bxd4 $11 {[%emt 0:00:11]} 12. Nge2 {[%emt 0:06:09]} Bxc3 {[%emt 0:01:57]} 13. Qxc3 {[%emt 0:03:32]} Re8 {[%emt 0:01:22]} 14. Be3 {[%emt 0:08:02]} Nd5 {[%emt 0:01:29]} 15. Bxd5 {[%emt 0:01:20]} Qxd5 {[%emt 0:00:19]} 16. O-O {[%emt 0:00:25]} Bg4 {[%emt 0:01:44]} 17. Nf4 {[%emt 0:00:38]} Qb5 {[%emt 0:14:12]} 18. b4 {[%emt 0:02:24]} g5 {[%emt 0:04:31]} 19. Ng2 {[%emt 0:00:28]} h6 {[%emt 0:06:18]} 20. f4 {[%emt 0:05:55]} Rac8 {[%emt 0:00:16]} 21. Qd2 {[%emt 0:00:36]} Bh3 {[%emt 0:04:35]} 22. Rae1 {[%emt 0:01:28]} Qa4 {[%emt 0:00:45]} 23. Rf2 {[%emt 0:03:11]} Qxa3 {[%emt 0:00:51]} 24. fxg5 {[%emt 0:01:02]} Bxg2 {[%emt 0:00:27]} 25. Kxg2 {[%emt 0:00:51]} Qxb4 {[%emt 0:00:07]} 26. gxh6 {[%emt 0:01:14]} Qe4+ {[%emt 0:02:10]} 27. Kg1 {[%emt 0:00:16]} Nc5 {[%emt 0:00:30]} 28. Qb2 {[%emt 0:00:51]} Nd3 {[%emt 0:00:00]} 29. Qg7# {[%emt 0:00:11]} 1-0

[Event "2nd Namma Bengaluru Open-B 2025"]
[Site "Bengaluru"]
[Date "2025.04.12"]
[Round "7.8"]
[White "Krishnasai Ramesh Vandanapu"]
[Black "Chakravarti, K.."]
[Result "1-0"]
[Annotator "NA"]
[ECO "B70"]
[WhiteElo "1790"]
[BlackElo "1930"]
[PlyCount "103"]
[EventDate "2025.04.10"]
[EventType "swiss"]
[EventCountry "IND"]
[SourceTitle "playchess.com"]
[Source "ChessBase"]
[SourceQuality "1"]
[TimeControl "3600+30"]

1. e4 {[%emt 0:00:03]} c5 {[%emt 0:00:13]} 2. Nf3 {[%emt 0:00:02]} d6 {[%emt 0:00:23]} 3. d4 {[%emt 0:00:03]} cxd4 {[%emt 0:00:07]} 4. Nxd4 {[%emt 0:00:04]} Nf6 {[%emt 0:00:06]} 5. Nc3 {[%emt 0:00:04]} g6 {[%emt 0:00:23]} 6. Be2 {[%emt 0:00:06]} Bg7 {[%emt 0:00:06]} 7. O-O {[%emt 0:00:06]} O-O {[%emt 0:00:03]} 8. Bg5 {[%emt 0:00:07]} Nc6 {[%emt 0:00:22]} 9. Nb3 {[%emt 0:00:05]} Be6 {[%emt 0:01:55]} 10. Kh1 {[%emt 0:00:41]} Rc8 {[%emt 0:01:50]} 11. f4 {[%emt 0:00:54]} Na5 {[%emt 0:00:38]} 12. e5 {[%emt 0:00:51]} Ne8 {[%emt 0:08:40]} 13. Nxa5 {[%emt 0:03:32]} Qxa5 {[%emt 0:00:26]} 14. Bxe7 {[%emt 0:00:14]} dxe5 {[%emt 0:00:34]} 15. Bxf8 {[%emt 0:00:53]} Kxf8 {[%emt 0:00:58]} 16. Ne4 {[%emt 0:13:26]} Kg8 {[%emt 0:06:00]} ({Better is} 16... exf4 $14 17. c3 Kg8) 17. Ng5 {[%emt 0:08:02]} Bf5 {[%emt 0:06:29]} (17... Rc6 {keeps fighting.} 18. Bf3 Rd6) 18. c3 {[%emt 0:03:42]} h6 {[%emt 0:01:02]} 19. Nf3 $16 {[%emt 0:03:56]} (19. g4 $1 $18 {[%cal Rg4f5]} hxg5 20. gxf5 exf4 21. fxg6 fxg6 22. Qb3+ Kh7 23. Qxb7) 19... exf4 {[%emt 0:06:59]} 20. Nd4 {[%emt 0:03:23]} Rd8 {[%emt 0:01:53]} 21. Rxf4 {[%emt 0:01:38]} Nd6 {[%emt 0:02:03]} 22. Nxf5 {[%emt 0:02:06]} Nxf5 {[%emt 0:00:33]} 23. Qc2 {[%emt 0:05:47]} Qe5 {[%emt 0:05:45]} 24. Qe4 {[%emt 0:01:15]} Qb8 {[%emt 0:04:07]} 25. Rd1 {[%emt 0:03:08]} Rxd1+ {[%emt 0:02:21]} 26. Bxd1 {[%emt 0:00:05]} Be5 {[%emt 0:00:18]} 27. Rg4 {[%emt 0:01:00]} Kh7 {[%emt 0:05:00]} 28. Qd5 {[%emt 0:04:31]} Qc7 {[%emt 0:01:50]} 29. Rc4 {[%emt 0:00:27]} Qe7 {[%emt 0:01:13]} 30. Re4 {[%emt 0:00:18]} f6 {[%emt 0:02:58]} 31. Bb3 {[%emt 0:00:19]} h5 {[%emt 0:02:02]} 32. Qg8+ {[%emt 0:02:12]} Kh6 {[%emt 0:00:02]} 33. Qh8+ {[%emt 0:00:09]} Kg5 {[%emt 0:00:12]} 34. g3 {[%emt 0:02:21]} Ng7 {[%emt 0:01:49]} 35. h4+ {[%emt 0:02:54]} Kf5 {[%emt 0:00:02]} 36. Bc2 {[%emt 0:00:08]} Ke6 {[%emt 0:02:09]} 37. Qg8+ {[%emt 0:00:58]} Kd7 {[%emt 0:01:00]} 38. Ba4+ {[%emt 0:01:12]} Kc7 {[%emt 0:02:10]} 39. Rc4+ {[%emt 0:00:17]} Kb6 {[%emt 0:00:32]} 40. Qd5 {[%emt 0:00:43]} a6 {[%emt 0:00:14]} 41. Rb4+ {[%emt 0:00:12]} Ka7 {[%emt 0:00:20]} 42. Bd7 {[%emt 0:01:52]} b6 {[%emt 0:01:27]} 43. Qc6 {[%emt 0:03:13]} Qd6 {[%emt 0:00:58]} 44. Qxd6 {[%emt 0:00:56]} Bxd6 {[%emt 0:00:02]} 45. Re4 {[%emt 0:00:20]} Be5 {[%emt 0:00:17]} 46. Kg2 {[%emt 0:00:15]} Kb7 {[%emt 0:00:25]} 47. Rc4 {[%emt 0:00:41]} b5 {[%emt 0:02:05]} 48. Rc8 {[%emt 0:00:15]} f5 {[%emt 0:00:36]} 49. Rc6 {[%emt 0:00:09]} b4 {[%emt 0:01:04]} 50. cxb4 {[%emt 0:00:19]} Bxb2 {[%emt 0:00:07]} 51. Rxg6 {[%emt 0:00:06]} Kc7 {[%emt 0:00:11]} 52. Ba4 {[%emt 0:00:37]} 1-0